fUST/lending_fUST_20240414
["ID","MTS","AMOUNT","RATE_DAILY","PERIOD"]
[322511320,1713039079652,-151.0,0.00356,120]
[322511322,1713039079663,-200.0,0.00359066,120]
[322511324,1713039079676,-500.0,0.00372602,120]
[322511327,1713039079695,-499.84420922,0.00375,120]
[322511328,1713039079707,-118493.12815706,0.0038,120]
[322511330,1713039079719,-1000.0,0.0038,120]
[322511333,1713039079731,-157.05495924,0.00383,120]
[322511335,1713039079743,-10718.0099607,0.00389987,120]
[322511337,1713039079754,-151.0,0.0039,120]
[322511339,1713039079765,-397.83826787,0.00399,120]
[322511341,1713039079776,-500.0,0.004,120]
[322511343,1713039079788,-499.84420922,0.004,120]
[322511344,1713039079800,-1004.8470144,0.004,120]
[322511347,1713039079812,-300.0,0.004,120]
[322511349,1713039079824,-1505.75805803,0.004,120]
[322511351,1713039079836,-20000.0,0.004,120]
[322511353,1713039079847,-265.0,0.004,120]
[322511355,1713039079860,-151.0,0.00424,120]
[322511357,1713039079876,-499.84420922,0.00425,120]
[322511359,1713039079888,-5559.68,0.0042998,35]
[322511360,1713039079906,-182.5,0.0042998,35]
[322511361,1713039079918,-5556.0,0.0042999,35]
[322511362,1713039079931,-181.0,0.0042999,35]
[322511363,1713039079942,-150.4,0.00430534,120]
[322511364,1713039079954,-1000.0,0.00431321,120]
[322511365,1713039079965,-151.0,0.004323,120]
[322511366,1713039079978,-500.0,0.0045,120]
[322511367,1713039079992,-499.84420922,0.0045,120]
[322511368,1713039080008,-151.0,0.00458,120]
[322511369,1713039080020,-226.13,0.0045998,35]
[322511370,1713039080032,-224.0,0.0045999,35]
[322511371,1713039080045,-499.84420922,0.00475,120]
[322511372,1713039080057,-2868.0,0.00476672,120]
[322511373,1713039080069,-313.26266888,0.00479,120]
[322511374,1713039080081,-151.0,0.00492,120]
[322511375,1713039080093,-50000.0,0.004999,7]
[322511377,1713039080105,-500.0,0.005,120]
[322511378,1713039080125,-499.84420922,0.005,120]
[322511381,1713039080137,-161.00954709,0.005,120]
[322511383,1713039080150,-20000.0,0.005,120]
[322511385,1713039080163,-150.4,0.00503209,120]
[322511387,1713039080176,-500.0,0.00509589,120]
[322511389,1713039080188,-499.84420922,0.00525,120]
[322511391,1713039080200,-151.0,0.00526,120]
[322511393,1713039080212,-1000.0,0.0055,120]
[322511395,1713039080226,-499.84420922,0.0055,120]
[322511397,1713039080238,-151.0,0.0056,120]
[322511399,1713039080250,-499.84420922,0.00575,120]
[322511401,1713039080262,-294.94023523,0.00576933,120]
[322511403,1713039080274,-283.02179281,0.00577,120]
[322511405,1713039080286,-1000.0,0.0058,120]
[322511407,1713039080299,-151.0,0.00594,120]
[322511409,1713039080311,-50056.7361057,0.006,120]
[322511411,1713039080327,-1000.0,0.006,120]
[322511413,1713039080338,-499.84420922,0.006,120]
[322511415,1713039080350,-300.0,0.006,120]
[322511418,1713039080363,-1234.0,0.006,120]
[322511420,1713039080377,-2100.0,0.006,120]
[322511422,1713039080389,-20000.0,0.006,120]
[322511424,1713039080400,-2550.28498235,0.00603252,30]
[322511425,1713039080413,-499.84420922,0.00625,120]
[322511427,1713039080434,-151.0,0.00628,120]
[322511430,1713039080447,-1000.0,0.00628581,120]
[322511432,1713039080459,-500.0,0.00646575,120]
[322511434,1713039080470,-1000.0,0.0065,120]
[322511436,1713039080481,-499.84420922,0.0065,120]
[322511438,1713039080492,-168.0,0.0065,120]
[322511440,1713039080504,-400.0,0.0065,120]
[322511442,1713039080515,-151.0,0.006531,120]
[322511444,1713039080527,-151.0,0.00662,120]
[322511446,1713039080538,-2868.0,0.00665558,120]
[322511448,1713039080550,-157.73798814,0.00672,120]
[322511450,1713039080562,-499.82515609,0.00675,120]
[322511452,1713039080574,-8000.0,0.0068,120]
[322511454,1713039080586,-1255.88134281,0.0068,120]
[322511456,1713039080597,-1002.26053379,0.00689,120]
[322511458,1713039080609,-200.0,0.00694747,120]
[322511460,1713039080625,-151.0,0.00696,120]
[322511462,1713039080644,-50054.37,0.00698987,120]
[322511464,1713039080656,-1000.0,0.00699999,120]
[322511466,1713039080667,-1000.0,0.007,120]
[322511468,1713039080679,-3212.52342945,0.007,120]
[322511471,1713039080690,-499.82515609,0.007,120]
[322511473,1713039080702,-26848.77922982,0.0071,120]
[322511475,1713039080714,-4500.0,0.00712329,120]
[322511477,1713039080725,-499.82515609,0.00725,120]
[322511479,1713039080736,-151.0,0.0073,120]
[322511481,1713039080748,-1110.99999901,0.00735,111]
[322511483,1713039080760,-1000.0,0.0075,120]
[322511485,1713039080775,-1000.0,0.0075,120]
[322511487,1713039080787,-499.82515609,0.0075,120]
[322511490,1713039080811,-151.0,0.00764,120]
[322511492,1713039080823,-157.66119421,0.0077,120]
[322511494,1713039080835,-499.82515609,0.00775,120]
[322511496,1713039080856,-1812.0,0.0077702,118]
[322511497,1713039080869,-500.0,0.00783561,120]
[322511498,1713039080887,-400.0,0.00789,30]
[322511499,1713039080899,-151.0,0.00798,120]
[322511500,1713039080911,-200.0,0.008,120]
[322511501,1713039080922,-801.51924468,0.008,2]
[322511502,1713039080933,-200.0,0.008,120]
[322511503,1713039080944,-1000.0,0.008,120]
[322511504,1713039080964,-2008.41750951,0.008,60]
[322511505,1713039080977,-499.82515609,0.008,120]
[322511506,1713039080988,-499.82515609,0.00825,120]
[322511507,1713039081000,-151.0,0.00832,120]
[322511508,1713039081012,-1000.0,0.0085,120]
[322511509,1713039081023,-499.82515609,0.0085,120]
[322511510,1713039081034,-2303.10142724,0.00854444,120]
[322511511,1713039081049,-564.89857276,0.00854444,120]
[322511512,1713039081069,-156.84314684,0.00866,120]
[322511514,1713039081082,-151.0,0.00866,120]
[322511516,1713039081093,-2047.25828039,0.0086888,120]
[322511518,1713039081113,-7944.941007,0.0086888,120]
[322511528,1713039081223,-8641.5000014,0.0086888,120]
[322511813,1713039084852,-500.0,0.0003315,7]
[322511815,1713039084863,-2190.3205093,0.0086888,120]
[322511832,1713039085049,-769.01317439,0.0003008,30]
[322511834,1713039085061,-554.11495927,0.00032876,7]
[322511836,1713039085072,-151.0,0.00032876,7]
[322511838,1713039085082,-184.27208844,0.00032876,7]
[322511840,1713039085093,-500.0,0.00032876,7]
[322511842,1713039085104,-500.0,0.00032876,7]
[322511844,1713039085127,-500.0,0.00032876,7]
[322511845,1713039085138,-500.0,0.00032876,7]
[322511848,1713039085150,-500.0,0.00032876,7]
[322511849,1713039085165,-500.0,0.00032876,7]
[322511852,1713039085176,-500.0,0.00032876,7]
[322511854,1713039085187,-524.83974503,0.00032876,7]
[322511856,1713039085199,-336.03586197,0.00033149,7]
[322511858,1713039085210,-151.0,0.0003315,7]
[322511859,1713039085223,-500.0,0.0003315,7]
[322511861,1713039085233,-500.0,0.0003315,7]
[322511863,1713039085244,-500.0,0.0003315,7]
[322511866,1713039085256,-3268.3450698,0.00033389,5]
[322511868,1713039085267,-154.73694719,0.00033422,4]
[322511870,1713039085278,-268.07680906,0.00033422,4]
[322511872,1713039085288,-1218.18721073,0.00033423,4]
[322511874,1713039085301,-808.75749862,0.00033423,4]
[322511876,1713039085312,-500.0,0.00033423,2]
[322511878,1713039085323,-375.88574209,0.00033424,7]
[322511879,1713039085335,-175.30320678,0.00033424,4]
[322511882,1713039085347,-1765.00944109,0.00033424,4]
[322511884,1713039085357,-206.36466874,0.00033424,2]
[322511886,1713039085368,-500.0,0.00033424,7]
[322511888,1713039085385,-290.569538,0.00034246,2]
[322511890,1713039085398,-166.895427,0.00036667,2]
[322511892,1713039085409,-166.895427,0.00038501,2]
[322511894,1713039085421,-10000.0,0.000395,15]
[322511898,1713039085477,-10501.00000001,0.0086888,120]
[322511900,1713039085490,-12576.0,0.0086888,120]
[322511903,1713039085514,-500.0,0.0003315,7]
[322511905,1713039085529,-1014.05805107,0.00033424,4]
[322511911,1713039085589,-284.2,0.0086888,120]
[322511914,1713039085603,-304.66488588,0.0086888,120]
[322511931,1713039085806,-3498.55412007,0.0086888,120]
[322511937,1713039085865,-6894.39319806,0.0086888,120]
[322523616,1713039614371,843.03412069,0.00044799,30]
[322523660,1713039995197,200.0,0.00025205,15]
[322523673,1713040031841,2599.94446993,0.00025205,5]
[322523679,1713040041190,-467.29545458,0.00024996,2]
[322523680,1713040041218,-622.39525053,0.00024996,2]
[322523681,1713040041244,-300.0,0.00024997,2]
[322523682,1713040041275,-300.0,0.00024997,2]
[322523683,1713040041304,-5571.78672209,0.00024997,2]
[322523684,1713040041344,-22766.55956933,0.00024998,2]
[322523685,1713040041377,-210.74041414,0.00025,2]
[322523686,1713040041415,-213.02071615,0.0002614,2]
[322523687,1713040041438,-35419.2659011,0.00026141,2]
[322523688,1713040041482,-250.0,0.00026343,2]
[322523689,1713040041517,-420.0,0.0002708,2]
[322523690,1713040041545,-155.08684864,0.0002734,2]
[322523691,1713040041576,-4517.7109338,0.00027343,2]
[322523692,1713040041599,-290.96325985,0.00027345,5]
[322523693,1713040041636,-164.424591,0.00027397,2]
[322523694,1713040041666,-157.619305,0.00027397,2]
[322523695,1713040041701,-420.0,0.00027497,2]
[322523696,1713040041735,-1942.1971709,0.00027915,2]
[322523697,1713040041771,-200.0,0.00028012,2]
[322523698,1713040041815,-1693.235298,0.00028394,2]
[322523699,1713040041847,-169.452554,0.00028751,2]
[322523700,1713040041887,-166.666666,0.00028758,2]
[322523701,1713040041920,-385.6587305,0.00029058,2]
[322523702,1713040041944,-186.3200295,0.00029092,2]
[322523703,1713040041968,-611.3511775,0.00029421,2]
[322523704,1713040041991,-1441.7639101,0.0002943,2]
[322523705,1713040042026,-166.666666,0.00029542,2]
[322523706,1713040042073,-587.0,0.00030246,2]
[322523707,1713040042116,-166.666666,0.00030326,2]
[322523708,1713040042142,-1461.44626747,0.00030384,4]
[322523709,1713040042165,-323.547508,0.00030384,4]
[322523710,1713040042192,-911.03637257,0.00030384,4]
[322523711,1713040042214,-365.47162491,0.00030384,4]
[322523712,1713040042236,-1090.61649673,0.00030384,4]
[322523713,1713040042269,-723.47987553,0.00030384,4]
[322523714,1713040042296,-1308.46081651,0.00030384,4]
[322523715,1713040042318,-522.7857071,0.00030384,4]
[322523716,1713040042344,-500.0,0.00030387,2]
[322523717,1713040042371,-200.14806691,0.00030387,4]
[322523718,1713040042399,-24900.0,0.00030559,2]
[322523719,1713040042424,-211.46671192,0.00030867,2]
[322523720,1713040042448,-161.870922,0.00030967,2]
[322523721,1713040042484,-166.666666,0.00031111,2]
[322523722,1713040042509,-154.9690062,0.0003189,7]
[322523723,1713040042535,-166.666666,0.00031895,2]
[322523724,1713040042558,-175.28639,0.00032255,2]
[322523725,1713040042585,-166.666666,0.00032679,2]
[322523726,1713040042616,-2000.0,0.00032776,2]
[322523727,1713040042651,-215.44558537,0.00032874,4]
[322523728,1713040042686,-346.35985792,0.00032874,4]
[322523729,1713040042720,-500.0,0.00032876,7]
[322523731,1713040042766,-500.0,0.00032876,7]
[322523732,1713040042797,-500.0,0.00032876,7]
[322523733,1713040042835,-500.0,0.00032876,7]
[322523734,1713040042871,-500.0,0.00032876,7]
[322523735,1713040042923,-185.08309679,0.00032876,7]
[322523736,1713040042953,-507.65052569,0.00032876,7]
[322523737,1713040043006,-500.0,0.00032876,7]
[322523738,1713040043054,-500.0,0.00032876,7]
[322523739,1713040043086,-500.0,0.00032876,7]
[322523740,1713040043134,-500.0,0.00032876,7]
[322523741,1713040043167,-503.57673755,0.00032876,7]
[322523742,1713040043212,-500.0,0.00032876,7]
[322523743,1713040043253,-500.0,0.00032876,7]
[322523744,1713040043287,-500.0,0.00032876,7]
[322523745,1713040043344,-500.0,0.00032876,7]
[322523746,1713040043377,-500.0,0.00032876,7]
[322523747,1713040043424,-500.0,0.00032876,7]
[322523748,1713040043463,-500.0,0.00032876,7]
[322523749,1713040043489,-500.0,0.00032876,7]
[322523750,1713040043535,-500.0,0.00032876,7]
[322523751,1713040043579,-500.0,0.00032876,7]
[322523752,1713040043613,-500.0,0.00032876,7]
[322523753,1713040043659,-500.0,0.00032876,7]
[322523754,1713040043703,-231.07620024,0.00032876,7]
[322523755,1713040043734,-500.0,0.00032876,7]
[322523756,1713040043790,-500.0,0.00032876,7]
[322523757,1713040043822,-500.0,0.00032876,7]
[322523758,1713040043853,-500.0,0.00032876,7]
[322523759,1713040043885,-500.0,0.00032876,7]
[322523760,1713040043924,-500.0,0.00032876,7]
[322523761,1713040043955,-500.0,0.00032876,7]
[322523762,1713040043983,-500.0,0.00032876,7]
[322523763,1713040044009,-500.0,0.00032876,7]
[322523764,1713040044034,-500.0,0.00032876,7]
[322523765,1713040044060,-500.0,0.00032876,7]
[322523766,1713040044090,-500.0,0.00032876,7]
[322523767,1713040044147,-500.0,0.00032876,7]
[322523768,1713040044176,-500.0,0.00032876,7]
[322523769,1713040044207,-500.0,0.00032876,7]
[322523770,1713040044240,-500.0,0.00032876,7]
[322523771,1713040044271,-500.0,0.00032876,7]
[322523772,1713040044297,-500.0,0.00032876,7]
[322523773,1713040044325,-500.0,0.00032876,7]
[322523774,1713040044351,-500.0,0.00032876,7]
[322523775,1713040044388,-500.0,0.00032876,7]
[322523776,1713040044432,-500.0,0.00032876,7]
[322523777,1713040044458,-500.0,0.00032876,7]
[322523778,1713040044487,-500.0,0.00032876,7]
[322523779,1713040044515,-501.61302778,0.00032876,7]
[322523780,1713040044541,-500.0,0.00032876,7]
[322523781,1713040044568,-500.0,0.00032876,7]
[322523782,1713040044596,-500.0,0.00032876,7]
[322523783,1713040044622,-500.0,0.00032876,7]
[322523784,1713040044652,-500.0,0.00032876,7]
[322523785,1713040044677,-500.0,0.00032876,7]
[322523786,1713040044702,-500.0,0.00032876,7]
[322523787,1713040044744,-565.85430167,0.00032876,7]
[322523788,1713040044772,-505.74057941,0.00032876,7]
[322523789,1713040044912,-515.23922426,0.00032876,7]
[322523790,1713040044985,-500.0,0.00032876,7]
[322523791,1713040045044,-500.0,0.00032876,7]
[322523792,1713040045071,-474.86905308,0.00032876,7]
[322523793,1713040045126,-500.0,0.00032876,7]
[322523794,1713040045184,-502.01161819,0.00032876,7]
[322523795,1713040045221,-500.0,0.00032876,7]
[322523796,1713040045273,-500.0,0.00032876,7]
[322523797,1713040045303,-500.0,0.00032876,7]
[322523798,1713040045348,-361.67758349,0.00032876,7]
[322523799,1713040045823,1550.58512313,0.00025205,5]
[322523818,1713040207322,9218.36662767,0.00021424,5]
[322523821,1713040219837,2293.13298791,0.00025205,5]
[322523822,1713040219871,114.15864277,0.00025205,5]
[322523951,1713040232416,-618.59,0.00032773,4]
[322523956,1713040232430,-9.25418081,0.00032773,4]
[322523958,1713040232440,-154.62889066,0.00032774,4]
[322523962,1713040232450,-226.08246918,0.00032776,6]
[322523964,1713040232461,-400.0,0.00032872,2]
[322523967,1713040232470,-367.0,0.00032872,2]
[322523970,1713040232480,-10619.43475223,0.00032873,5]
[322523973,1713040232490,-766.34153241,0.00032874,4]
[322523975,1713040232499,-937.66260611,0.00032874,4]
[322523978,1713040232509,-1212.72837645,0.00032874,4]
[322523981,1713040232521,-867.82809104,0.00032874,4]
[322523984,1713040232530,-332.8161675,0.00032874,4]
[322523986,1713040232540,-376.89055884,0.00032874,4]
[322523989,1713040232551,-187.79272959,0.00032874,4]
[322523992,1713040232563,-1669.02936299,0.00032874,4]
[322523994,1713040232573,-958.16803838,0.00032874,4]
[322523996,1713040232583,-234.35159784,0.00032874,4]
[322523999,1713040232593,-257.62252103,0.00032874,4]
[322524001,1713040232603,-138.32241651,0.00032876,7]
[322524004,1713040232613,-500.0,0.00032876,7]
[322524007,1713040232623,-304.99406848,0.00032876,7]
[322524010,1713040232632,-500.0,0.00032876,7]
[322524012,1713040232642,-500.0,0.00032876,7]
[322524015,1713040232652,-500.0,0.00032876,7]
[322524018,1713040232661,-500.0,0.00032876,7]
[322524021,1713040232671,-500.0,0.00032876,7]
[322524023,1713040232680,-500.0,0.00032876,7]
[322524026,1713040232689,-500.0,0.00032876,7]
[322524029,1713040232699,-500.0,0.00032876,7]
[322524031,1713040232708,-500.0,0.00032876,7]
[322524033,1713040232718,-500.0,0.00032876,7]
[322524036,1713040232727,-500.0,0.00032876,7]
[322524039,1713040232736,-500.0,0.00032876,7]
[322524041,1713040232746,-500.35970317,0.00032876,7]
[322524044,1713040232755,-500.0,0.00032876,7]
[322524047,1713040232765,-500.0,0.00032876,7]
[322524050,1713040232774,-500.0,0.00032876,7]
[322524052,1713040232783,-503.42122321,0.00032876,7]
[322524055,1713040232793,-500.0,0.00032876,7]
[322524058,1713040232808,-500.0,0.00032876,7]
[322524061,1713040232818,-500.0,0.00032876,7]
[322524062,1713040232827,-500.0,0.00032876,7]
[322524066,1713040232837,-500.0,0.00032876,7]
[322524068,1713040232847,-7402.23069549,0.00033148,4]
[322524071,1713040232857,-3457.76729452,0.00033148,4]
[322524074,1713040232866,-500.0,0.00033149,7]
[322524077,1713040232875,-500.0,0.00033149,7]
[322524079,1713040232885,-500.0,0.0003315,7]
[322524082,1713040232894,-500.0,0.0003315,7]
[322524085,1713040232904,-500.0,0.0003315,7]
[322524086,1713040232913,-500.0,0.0003315,7]
[322524090,1713040232922,-500.0,0.0003315,7]
[322524093,1713040232932,-500.0,0.0003315,7]
[322524094,1713040232941,-500.0,0.0003315,7]
[322524098,1713040232951,-500.0,0.0003315,7]
[322524100,1713040232960,-500.0,0.0003315,7]
[322524103,1713040232970,-500.0,0.0003315,7]
[322524105,1713040232979,-500.0,0.0003315,7]
[322524106,1713040232989,-500.0,0.0003315,7]
[322524108,1713040232998,-500.0,0.0003315,7]
[322524110,1713040233007,-500.0,0.0003315,7]
[322524112,1713040233017,-500.0,0.0003315,7]
[322524113,1713040233027,-520.17380218,0.0003315,7]
[322524115,1713040233037,-500.0,0.0003315,7]
[322524117,1713040233046,-500.0,0.0003315,7]
[322524119,1713040233059,-589.66921019,0.0003315,7]
[322524121,1713040233068,-500.0,0.0003315,7]
[322524123,1713040233077,-500.0,0.0003315,7]
[322524124,1713040233087,-644.79868849,0.0003315,7]
[322524126,1713040233097,-150.18108151,0.0003315,7]
[322524128,1713040233106,-500.0,0.0003315,7]
[322524130,1713040233115,-500.0,0.0003315,7]
[322524132,1713040233125,-501.03403913,0.0003315,7]
[322524134,1713040233135,-925.5318754,0.00033313,4]
[322524135,1713040233144,-7000.0,0.000334,5]
[322524137,1713040233154,-500.0,0.00033423,7]
[322524139,1713040233164,-500.0,0.00033423,7]
[322524141,1713040233173,-21278.73816483,0.00033424,4]
[322524143,1713040233183,-500.0,0.00033424,7]
[322524144,1713040233193,-500.0,0.00033424,7]
[322524145,1713040233203,-500.0,0.00033424,7]
[322524146,1713040233212,-500.0,0.00033424,7]
[322524147,1713040233222,-500.0,0.00033424,7]
[322524148,1713040233232,-500.0,0.00033424,7]
[322524149,1713040233241,-500.0,0.00033424,7]
[322524150,1713040233252,-500.0,0.00033424,7]
[322524152,1713040233263,-500.0,0.00033424,7]
[322524154,1713040233273,-307.60690274,0.00033424,7]
[322524156,1713040233283,-500.0,0.00033424,7]
[322524158,1713040233293,-500.0,0.00033424,7]
[322524160,1713040233305,-622.62751481,0.00033424,7]
[322524162,1713040233314,-233.68172836,0.00033424,7]
[322524163,1713040233324,-504.22424749,0.00033424,7]
[322524165,1713040233333,-500.0,0.00033697,7]
[322524168,1713040233343,-500.0,0.00033698,7]
[322524170,1713040233353,-500.0,0.00033698,7]
[322524172,1713040233365,-500.0,0.00033698,7]
[322524173,1713040233376,-500.0,0.00033698,7]
[322524175,1713040233387,-500.0,0.00033698,7]
[322524177,1713040233396,-500.0,0.00033698,7]
[322524180,1713040233409,-502.54276908,0.00033698,7]
[322524181,1713040233418,-352.40990046,0.00033972,7]
[322524183,1713040233429,-500.0,0.00033972,7]
[322524185,1713040233440,-465.13392178,0.00034,4]
[322524187,1713040233449,-500.0,0.00034245,7]
[322524189,1713040233459,-500.0,0.00034246,7]
[322524191,1713040233469,-500.0,0.0003452,7]
[322524194,1713040233479,-500.0,0.00034793,7]
[322524197,1713040233488,-500.0,0.00034794,7]
[322524199,1713040233498,-1216.79700906,0.00035,30]
[322524201,1713040233507,-6863.59001365,0.00035,4]
[322524203,1713040233517,-320.10207528,0.00035,30]
[322524205,1713040233526,-852.3925685,0.00035,2]
[322524207,1713040233536,-372.12463709,0.00035066,4]
[322524209,1713040233545,-802.45389962,0.00035067,35]
[322524211,1713040233558,-551.17639657,0.00035068,7]
[322524213,1713040233568,-500.0,0.00035341,7]
[322524214,1713040233578,-13093.81919513,0.000354,120]
[322524216,1713040233588,-1500.6389,0.00035616,120]
[322524218,1713040233597,-154.70605849,0.0003589,2]
[322524220,1713040233607,-560.0,0.00036159,2]
[322524222,1713040233616,-500.0,0.00036163,7]
[322524223,1713040233626,-1841.77915,0.00036667,2]
[322524225,1713040233635,-1645.082998,0.00036667,2]
[322524227,1713040233645,-2000.0,0.000367,2]
[322524229,1713040233655,-7034.35049181,0.000368,7]
[322524231,1713040233664,-2921.62539655,0.00037,2]
[322524233,1713040233673,-1841.77915,0.00037126,2]
[322524234,1713040233682,-1645.082998,0.00037126,2]
[322524236,1713040233692,-522.15074033,0.00037259,7]
[322524237,1713040233701,-157.619305,0.0003736,2]
[322524238,1713040233710,-1841.77915,0.00037584,2]
[322524239,1713040233720,-1645.082998,0.00037584,2]
[322524240,1713040233729,-1841.77915,0.00038042,2]
[322524241,1713040233739,-1645.082998,0.00038042,2]
[322524242,1713040233748,-1841.77915,0.00038501,2]
[322524243,1713040233758,-1645.082998,0.00038501,2]
[322524244,1713040233768,-783.0,0.00039775,3]
[322524245,1713040233777,-201.65562337,0.0004,2]
[322524246,1713040233787,-1759.1339403,0.0004,4]
[322524247,1713040233797,-188.52918615,0.00041,2]
[322524248,1713040233810,-1327.10739952,0.00041,4]
[322524249,1713040233819,-2724.213981,0.00041,30]
[322524250,1713040233829,-6934.0,0.00041246,30]
[322524251,1713040233842,-1500.6389,0.00041553,120]
[322524252,1713040233852,-150.59339783,0.00041852,2]
[322524253,1713040233861,-1693.235298,0.00042591,2]
[322524254,1713040233871,-153.85243649,0.00042661,30]
[322524255,1713040233882,-1097.0,0.00043753,3]
[322524256,1713040233892,-321.1375485,0.00043763,2]
[322524257,1713040233905,-153.0,0.000439,2]
[322524258,1713040233915,-202.6554974,0.000439,2]
[322524259,1713040233925,-153.0,0.000439,2]
[322524260,1713040233935,-306.0,0.000439,2]
[322524261,1713040233944,-153.0,0.000439,2]
[322524262,1713040233953,-302.0,0.00044,120]
[322524263,1713040233963,-153.85243649,0.00044536,30]
[322524264,1713040233973,-1572.45541938,0.00044575,17]
[322524265,1713040233982,-10000.0,0.00044764,30]
[322524266,1713040233991,-1158.92348694,0.00044799,4]
[322524267,1713040234000,-318.31653243,0.00044799,120]
[322524268,1713040234010,-152.60882267,0.00044886,20]
[322524269,1713040234019,-13069.67274906,0.00045,5]
[322524270,1713040234028,-10655.39564516,0.00045,120]
[322524271,1713040234038,-8716.76596975,0.00045,120]
[322524272,1713040234047,-189.73786513,0.00045025,120]
[322524273,1713040234060,-500.0,0.00045025,120]
[322524274,1713040234069,-364.35123334,0.00045025,120]
[322524275,1713040234079,-170.09190297,0.00045025,120]
[322524276,1713040234088,-153.85243649,0.00045026,30]
[322524277,1713040234099,-153.85243649,0.00045374,30]
[322524278,1713040234108,-153.21439812,0.0004561,30]
[322524279,1713040234118,-154.67518212,0.000459,4]
[322524280,1713040234127,-211.46671192,0.00045938,2]
[322524281,1713040234137,-212839.95183207,0.00045943,30]
[322524282,1713040234251,-150.59339783,0.00046502,2]
[322524283,1713040234261,-153.21439812,0.00047129,30]
[322524284,1713040234270,-1693.41352856,0.00047249,21]
[322524285,1713040234280,-301.18679565,0.00047283,4]
[322524286,1713040234290,-157.619305,0.00047323,2]
[322524287,1713040234299,-1500.6389,0.00047489,120]
[322524288,1713040234321,-602.3735913,0.00048078,7]
[322524289,1713040234331,-523.0,0.00048128,3]
[322524290,1713040234341,-3374.50106562,0.00049,120]
[322524291,1713040234351,-2000.0,0.00049,68]
[322524292,1713040234362,-2903.585161,0.0004901,68]
[322524293,1713040234376,-153.85243649,0.00049025,30]
[322524294,1713040234386,-1204.74718261,0.00049295,30]
[322524295,1713040234395,-1577.0465598,0.00049924,21]
[322524296,1713040234407,-154.73694719,0.0005,30]
[322524297,1713040234418,-1831.31857883,0.0005,45]
[322524298,1713040234428,-4711.81562873,0.0005,120]
[322524299,1713040234443,-153.0,0.00053169,2]
[322524300,1713040234454,-1500.6389,0.00053425,120]
[322524301,1713040234464,-153.21439812,0.0005361,60]
[322524302,1713040234473,-175.28639,0.0005463,2]
[322524303,1713040234483,-189.89565919,0.00054794,120]
[322524304,1713040234494,-164.424591,0.00054795,2]
[322524305,1713040234503,-153.85243649,0.00054913,60]
[322524306,1713040234512,-152.60882267,0.00054934,98]
[322524307,1713040234522,-158.72190416,0.00055402,120]
[322524308,1713040234531,-158.72190416,0.00055554,120]
[322524309,1713040234541,-13569.5891866,0.000557,120]
[322524310,1713040234550,-153.21439812,0.00056141,120]
[322524311,1713040234566,-162.4543637,0.00057023,120]
[322524312,1713040234576,-157.619305,0.00057285,2]
[322524313,1713040234588,-162.4543637,0.00057628,120]
[322524314,1713040234597,-162.4543637,0.0005776,120]
[322524315,1713040234607,-150.06786101,0.0005863,7]
[322524316,1713040234620,-32919.45932403,0.00059,2]
[322524317,1713040234630,-153.21439812,0.00059953,120]
[322524318,1713040234639,-544.842795,0.0006,120]
[322524319,1713040234649,-158.72190416,0.00060039,120]
[322524320,1713040234658,-158.72190416,0.00060909,120]
[322524321,1713040234669,-162.4543637,0.00061084,120]
[322524322,1713040234679,-158.72190416,0.00061578,120]
[322524323,1713040234688,-162.4543637,0.00062134,120]